Workbook

Sheet Лист1
A1: Школа | C1: МБОУ "Богдашкинская ООШ" | F1: Утвердил: | G1: должность | H1: Директор
A2: Типовое примерное меню приготавливаемых блюд | G2: фамилия | H2: Потапова Н.Г.
A3: Возрастная категория | E3: 7-11 лет | G3: дата | H3: 5 | I3: 2 | J3: 2024
H4: день | I4: месяц | J4: год
A5: Неделя | B5: День недели | C5: Прием пищи | D5: Раздел меню | E5: Блюда | F5: Вес блюда, г | G5: Белки | H5: Жиры | I5: Углеводы | J5: Калорийность | K5: № рецептуры | L5: Цена
A6: 1 | B6: 1 | C6: Завтрак | D6: гор.блюдо | E6: Гуляш из куриных грудок | F6: 100 | G6: 17 | H6: 10 | I6: 4 | J6: 171 | K6: 295 | L6: 66.76
D7: гор.блюдо | E7: Макаронные изделия отварные с маслом 150/5 | F7: 155 | G7: 6 | H7: 5 | I7: 37 | J7: 217 | K7: 203
D8: гор.напиток | E8: чай с молоком и с сахаром 150/40/10 | F8: 200 | G8: 1 | H8: 1 | I8: 12 | J8: 61 | K8: 378
D9: хлеб | E9: Хлеб пшеничный | F9: 30 | G9: 2 | H9: 0 | I9: 15 | J9: 71
D10: фрукты | E10: Яблоко | F10: 120 | G10: 1 | H10: 1 | I10: 12 | J10: 56
D11: хлеб | E11: Хлеб ржаной | F11: 20 | G11: 1 | H11: 0 | I11: 9 | J11: 41
D12: закуска | E12: Салат из моркови | F12: 60 | G12: 1 | H12: 0 | I12: 6 | J12: 28 | K12: 30
D13: итого | F13: =SUM(F6:F12) -> 685 | G13: =SUM(G6:G12) -> 28.9 | H13: 16.9 | I13: 93.5 | J13: 644.4 | L13: =SUM(L6:L12) -> 66.76
A14: =A6 -> 1 | B14: =B6 -> 1 | C14: Обед | D14: закуска
D15: 1 блюдо
D16: 2 блюдо
D17: гарнир
D18: напиток
D19: хлеб бел.
D20: хлеб черн.
D23: итого | F23: =SUM(F14:F22) -> 0 | G23: =SUM(G14:G22) -> 0 | H23: 0 | I23: 0 | J23: 0 | L23: =SUM(L14:L22) -> 0
A24: =A6 -> 1 | B24: =B6 -> 1 | C24: Итого за день: | F24: =F13+F23 -> 685 | G24: =G13+G23 -> 28.9 | H24: 16.9 | I24: 93.5 | J24: 644.4 | L24: =L13+L23 -> 66.76
A25: 1 | B25: 2 | C25: Завтрак | D25: гор.блюдо | E25: Плов из курицы | F25: 200 | G25: 19 | H25: 14 | I25: 45 | J25: 373 | K25: 291 | L25: 66.76
D26: закуска | E26: Салат из свеклы | F26: 60 | G26: 1 | H26: 4 | I26: 5 | J26: 56 | K26: 33
D27: гор.напиток | E27: Компот из смеси сухофруктов | F27: 200 | G27: 1 | H27: 2 | I27: 23 | J27: 118 | K27: 349
D28: хлеб | E28: Хлеб пшеничный | F28: 30 | G28: 2 | H28: 0 | I28: 15 | J28: 71
D29: фрукты
D30: хлеб | E30: Хлеб ржаной | F30: 20 | G30: 1 | H30: 0 | I30: 9 | J30: 41
D32: итого | F32: =SUM(F25:F31) -> 510 | G32: =SUM(G25:G31) -> 24.1 | H32: =SUM(H25:H31) -> 19.9 | I32: =SUM(I25:I31) -> 96.5 | J32: =SUM(J25:J31) -> 658.7 | L32: 66.76
A33: =A25 -> 1 | B33: =B25 -> 2 | C33: Обед | D33: закуска
D34: 1 блюдо
D35: 2 блюдо
D36: гарнир
D37: напиток
D38: хлеб бел.
D39: хлеб черн.
D42: итого | F42: =SUM(F33:F41) -> 0 | G42: =SUM(G33:G41) -> 0 | H42: =SUM(H33:H41) -> 0 | I42: =SUM(I33:I41) -> 0 | J42: =SUM(J33:J41) -> 0 | L42: 0
A43: =A25 -> 1 | B43: =B25 -> 2 | C43: Итого за день: | F43: =F32+F42 -> 510 | G43: =G32+G42 -> 24.1 | H43: =H32+H42 -> 19.9 | I43: =I32+I42 -> 96.5 | J43: =J32+J42 -> 658.7 | L43: 66.76
A44: 1 | B44: 3 | C44: Завтрак | D44: гор.блюдо | E44: Гуляш из говядины | F44: 100 | G44: 13 | H44: 16 | I44: 4 | J44: 212 | K44: 256 | L44: 66.76
D45: гор.блюдо | E45: Макаронные изделия отварные с маслом 150/5 | F45: 155 | G45: 6 | H45: 5 | I45: 38 | J45: 217 | K45: 203
D46: гор.напиток | E46: Чай с сахаром и лимоном 185/10/5 | F46: 200 | G46: 0 | H46: 0 | I46: 10 | J46: 42 | K46: 377
D47: хлеб | E47: Хлеб пшеничный | F47: 30 | G47: 2 | H47: 0 | I47: 15 | J47: 71
D48: фрукты
D49: хлеб | E49: Хлеб ржаной | F49: 20 | G49: 1 | H49: 0 | I49: 9 | J49: 41
D50: закуска | E50: Салат из квашеной капусты | F50: 60 | G50: 1 | H50: 3 | I50: 3 | J50: 43 | K50: 47
D51: итого | F51: =SUM(F44:F50) -> 565 | G51: =SUM(G44:G50) -> 24 | H51: =SUM(H44:H50) -> 23.8 | I51: =SUM(I44:I50) -> 78.7 | J51: =SUM(J44:J50) -> 624.8 | L51: 66.76
A52: =A44 -> 1 | B52: =B44 -> 3 | C52: Обед | D52: закуска
D53: 1 блюдо
D54: 2 блюдо
D55: гарнир
D56: напиток
D57: хлеб бел.
D58: хлеб черн.
D61: итого | F61: =SUM(F52:F60) -> 0 | G61: =SUM(G52:G60) -> 0 | H61: =SUM(H52:H60) -> 0 | I61: =SUM(I52:I60) -> 0 | J61: =SUM(J52:J60) -> 0 | L61: 0
A62: =A44 -> 1 | B62: =B44 -> 3 | C62: Итого за день: | F62: =F51+F61 -> 565 | G62: =G51+G61 -> 24 | H62: =H51+H61 -> 23.8 | I62: =I51+I61 -> 78.7 | J62: =J51+J61 -> 624.8 | L62: 66.76
A63: 1 | B63: 4 | C63: Завтрак | D63: гор.блюдо | E63: Котлеты рубленные из курицы с соусом 60/40 | F63: 100 | G63: 11 | H63: 9 | I63: 11 | J63: 167 | K63: 295 | L63: 66.76
D64: гор.блюдо | E64: Каша гречневая вязкая с маслом сливочным | F64: 155 | G64: 5 | H64: 5 | I64: 21 | J64: 147 | K64: 324
D65: гор.напиток | E65: Чай с сахаром 195/5 | F65: 200 | G65: 0 | H65: 0 | I65: 5 | J65: 21 | K65: 376
D66: хлеб | E66: Хлеб пшеничный | F66: 30 | G66: 2 | H66: 0 | I66: 15 | J66: 71
D67: фрукты | E67: Яблоко | F67: 120 | G67: 1 | H67: 1 | I67: 12 | J67: 56
D68: хлеб | E68: Хлеб ржаной | F68: 20 | G68: 1 | H68: 0 | I68: 9 | J68: 41
D69: закуска | E69: Салат из моркови с яблоками | F69: 60 | G69: 1 | H69: 3 | I69: 5 | J69: 52 | K69: 71
D70: итого | F70: =SUM(F63:F69) -> 685 | G70: =SUM(G63:G69) -> 20.4 | H70: =SUM(H63:H69) -> 18.3 | I70: =SUM(I63:I69) -> 77.1 | J70: =SUM(J63:J69) -> 554.8 | L70: 66.76
A71: =A63 -> 1 | B71: =B63 -> 4 | C71: Обед | D71: закуска
D72: 1 блюдо
D73: 2 блюдо
D74: гарнир
D75: напиток
D76: хлеб бел.
D77: хлеб черн.
D80: итого | F80: =SUM(F71:F79) -> 0 | G80: =SUM(G71:G79) -> 0 | H80: =SUM(H71:H79) -> 0 | I80: =SUM(I71:I79) -> 0 | J80: =SUM(J71:J79) -> 0 | L80: 0
A81: =A63 -> 1 | B81: =B63 -> 4 | C81: Итого за день: | F81: =F70+F80 -> 685 | G81: =G70+G80 -> 20.4 | H81: =H70+H80 -> 18.3 | I81: =I70+I80 -> 77.1 | J81: =J70+J80 -> 554.8 | L81: 66.76
A82: 1 | B82: 5 | C82: Завтрак | D82: гор.блюдо | E82: Котлета мясная с соусом 60/40 | F82: 100 | G82: 10 | H82: 9 | I82: 11 | J82: 165 | K82: 270 | L82: 66.76
D83: гор.блюдо | E83: Пюре картофельное | F83: 150 | G83: 3 | H83: 5 | I83: 21 | J83: 141 | K83: 312
D84: гор.напиток | E84: Компот из смеси сухофруктов | F84: 200 | G84: 1 | H84: 2 | I84: 23 | J84: 118 | K84: 349
D85: хлеб | E85: Хлеб пшеничный | F85: 30 | G85: 1 | H85: 0 | I85: 9 | J85: 41
D86: фрукты
D87: хлеб | E87: Хлеб ржаной | F87: 20 | G87: 41 | H87: 1 | I87: 0 | J87: 9
D88: закуска | E88: Салат из квашеной капусты | F88: 60 | G88: 1 | H88: 3 | I88: 3 | J88: 43 | K88: 47
D89: итого | F89: =SUM(F82:F88) -> 560 | G89: =SUM(G82:G88) -> 57.2 | H89: 19.9 | I89: 68.3 | J89: 515 | L89: =SUM(L82:L88) -> 66.76
A90: =A82 -> 1 | B90: =B82 -> 5 | C90: Обед | D90: закуска
D91: 1 блюдо
D92: 2 блюдо
D93: гарнир
D94: напиток
D95: хлеб бел.
D96: хлеб черн.
D99: итого | F99: =SUM(F90:F98) -> 0 | G99: =SUM(G90:G98) -> 0 | H99: 0 | I99: 0 | J99: 0 | L99: =SUM(L90:L98) -> 0
A100: =A63 -> 1 | B100: 5 | C100: Итого за день: | F100: =F89+F99 -> 560 | G100: =G89+G99 -> 57.2 | H100: =H89+H99 -> 19.9 | I100: =I89+I99 -> 68.3 | J100: =J89+J99 -> 515 | L100: =L89+L99 -> 66.76
A101: 1 | B101: 6 | C101: Завтрак | D101: гор.блюдо | E101: Гороховое пюре | F101: 150 | G101: 16 | H101: 5 | I101: 33 | J101: 240.5 | K101: 199 | L101: 66.76
D102: гор.блюдо | E102: Котлета рубленая из курицы с соусом | F102: 100 | G102: 11 | H102: 9 | I102: 11 | J102: 166.8 | K102: 295
D103: гор.напиток | E103: Какао с молоком | F103: 200 | G103: 3 | H103: 3 | I103: 15 | J103: 98.1 | K103: 382
D104: хлеб | E104: Хлеб пшеничный | F104: 30 | G104: 2 | H104: 0 | I104: 15 | J104: 71.1
D105: фрукты
D106: хлеб | E106: Хлеб ржаной | F106: 20 | G106: 1 | H106: 0 | I106: 9 | J106: 40.8
D107: закуска | E107: Салат из моркови с яблоками | F107: 60 | G107: 1 | H107: 3 | I107: 5 | J107: 52.3 | K107: 71
D108: итого | F108: =SUM(F101:F107) -> 560 | G108: =SUM(G101:G107) -> 34.3 | H108: 20.4 | I108: 87.8 | J108: 669.6 | L108: =SUM(L101:L107) -> 66.76
A109: =A101 -> 1 | B109: =B101 -> 6 | C109: Обед | D109: закуска
D110: 1 блюдо
D111: 2 блюдо
D112: гарнир
D113: напиток
D114: хлеб бел.
D115: хлеб черн.
D118: итого | F118: =SUM(F109:F117) -> 0 | G118: =SUM(G109:G117) -> 0 | H118: 0 | I118: 0 | J118: 0 | L118: =SUM(L109:L117) -> 0
A119: =A82 -> 1 | B119: 6 | C119: Итого за день: | F119: =F108+F118 -> 560 | G119: =G108+G118 -> 34.3 | H119: 20.4 | I119: 87.8 | J119: 669.6 | L119: 66.76
A120: 2 | B120: 7 | C120: Завтрак | D120: гор.блюдо | E120: Сосиски мусульманские отварные | F120: 100 | G120: 11 | H120: 25 | I120: 0 | J120: 253 | K120: 254 | L120: 66.76
D121: гор.блюдо | E121: Макаронные изделия отварные с маслом | F121: 155 | G121: 6 | H121: 5 | I121: 38 | J121: 217 | K121: 253
D122: гор.напиток | E122: Чай с молоком и с сахаром | F122: 200 | G122: 1 | H122: 1 | I122: 12 | J122: 61 | K122: 378
D123: хлеб | E123: Хлеб пшеничный | F123: 30 | G123: 2 | H123: 0 | I123: 15 | J123: 71
D124: фрукты | E124: Яблоко | F124: 120 | G124: 1 | H124: 1 | I124: 12 | J124: 56
D125: хлеб | E125: Хлеб ржаной | F125: 20 | G125: 1 | H125: 0 | I125: 7 | J125: 41
D126: закуска | E126: Салат из квашенной капусты | F126: 60 | G126: 1 | H126: 3 | I126: 3 | J126: 43 | K126: 47
D127: итого | F127: =SUM(F120:F126) -> 685 | G127: =SUM(G120:G126) -> 23.4 | H127: 33.8 | I127: 86.6 | J127: 741.7 | L127: =SUM(L120:L126) -> 66.76
A128: =A120 -> 2 | B128: 7 | C128: Обед | D128: закуска
D129: 1 блюдо
D130: 2 блюдо
D131: гарнир
D132: напиток
D133: хлеб бел.
D134: хлеб черн.
D137: итого | F137: =SUM(F128:F136) -> 0 | G137: =SUM(G128:G136) -> 0 | H137: 0 | I137: 0 | J137: 0 | L137: =SUM(L128:L136) -> 0
A138: =A120 -> 2 | B138: =B120 -> 7 | C138: Итого за день: | F138: =F127+F137 -> 685 | G138: =G127+G137 -> 23.4 | H138: =H127+H137 -> 33.8 | I138: =I127+I137 -> 86.6 | J138: =J127+J137 -> 741.7 | L138: 66.76
A139: 2 | B139: 8 | C139: Завтрак | D139: гор.блюдо | E139: Котлеты мясная с соусом 60/40 | F139: 100 | G139: 10 | H139: 9 | I139: 12 | J139: 166 | K139: 270 | L139: 66.76
D140: гор.блюдо | E140: Каша гречневая рассыпчатая | F140: 150 | G140: 8 | H140: 4 | I140: 38 | J140: 224 | K140: 323
D141: гор.напиток | E141: Чай с сахаром с лимоном 195/5 | F141: 200 | G141: 0 | H141: 0 | I141: 10 | J141: 42 | K141: 377
D142: хлеб | E142: Хлеб пшеничный | F142: 30 | G142: 2 | H142: 0 | I142: 15 | J142: 71
D143: фрукты
D144: хлеб | E144: Хлеб ржаной | F144: 20 | G144: 1 | H144: 0 | I144: 9 | J144: 41
D145: закуска | E145: Салат из свеклы | F145: 60 | G145: 1 | H145: 4 | I145: 5 | J145: 56 | K145: 33
D146: итого | F146: =SUM(F139:F145) -> 560 | G146: =SUM(G139:G145) -> 22.8 | H146: 17.4 | I146: 88.4 | J146: 599.4 | L146: =SUM(L139:L145) -> 66.76
A147: =A139 -> 2 | B147: 8 | C147: Обед | D147: закуска
D148: 1 блюдо
D149: 2 блюдо
D150: гарнир
D151: напиток
D152: хлеб бел.
D153: хлеб черн.
D156: итого | F156: =SUM(F147:F155) -> 0 | G156: =SUM(G147:G155) -> 0 | H156: 0 | I156: 0 | J156: 0 | L156: =SUM(L147:L155) -> 0
A157: =A139 -> 2 | B157: =B139 -> 8 | C157: Итого за день: | F157: =F146+F156 -> 560 | G157: =G146+G156 -> 22.8 | H157: =H146+H156 -> 17.4 | I157: =I146+I156 -> 88.4 | J157: =J146+J156 -> 599.4 | L157: 66.76
A158: 2 | B158: 9 | C158: Завтрак | D158: гор.блюдо | E158: Рагу из птицы | F158: 200 | G158: 19 | H158: 11 | I158: 20 | J158: 249 | K158: 289 | L158: 66.76
D159: закуска | E159: Салат из моркови | F159: 60 | G159: 1 | H159: 0 | I159: 6 | J159: 28 | K159: 41
D160: гор.напиток | E160: Какао с молоком | F160: 200 | G160: 3.4 | H160: 2.8 | I160: 14.6 | J160: 98.1 | K160: 382
D161: хлеб | E161: Хлеб пшеничный | F161: 30 | G161: 2 | H161: 0 | I161: 15 | J161: 71
D162: фрукты
D163: хлеб | E163: Хлеб ржаной | F163: 20 | G163: 1 | H163: 0 | I163: 9 | J163: 41
D165: итого | F165: =SUM(F158:F164) -> 510 | G165: =SUM(G158:G164) -> 27.1 | H165: 14.3 | I165: 63.7 | J165: 487.3 | L165: =SUM(L158:L164) -> 66.76
A166: =A158 -> 2 | B166: 9 | C166: Обед | D166: закуска
D167: 1 блюдо
D168: 2 блюдо
D169: гарнир
D170: напиток
D171: хлеб бел.
D172: хлеб черн.
D175: итого | F175: =SUM(F166:F174) -> 0 | G175: =SUM(G166:G174) -> 0 | H175: 0 | I175: 0 | J175: 0 | L175: =SUM(L166:L174) -> 0
A176: =A158 -> 2 | B176: =B158 -> 9 | C176: Итого за день: | F176: =F165+F175 -> 510 | G176: =G165+G175 -> 27.1 | H176: =H165+H175 -> 14.3 | I176: =I165+I175 -> 63.7 | J176: =J165+J175 -> 487.3 | L176: 66.76
A177: 2 | B177: 10 | C177: Завтрак | D177: гор.блюдо | E177: Фрикадельки рыбные в томатном соусе | F177: 90 | G177: 7 | H177: 6 | I177: 4 | J177: 93 | K177: 240 | L177: 66.76
D178: гор.блюдо | E178: Макаронные изделия отварные с маслом | F178: 165 | G178: 6 | H178: 5 | I178: 38 | J178: 219 | K178: 203
D179: гор.напиток | E179: Чай с сахаром | F179: 200 | G179: 0 | H179: 0 | I179: 5 | J179: 21
D180: хлеб | E180: Хлеб пшеничный | F180: 30 | G180: 2 | H180: 0 | I180: 15 | J180: 71
D181: фрукты | E181: Яблоко | F181: 120 | G181: 1 | H181: 1 | I181: 12 | J181: 56
D182: хлеб | E182: хлеб ржаной | F182: 20 | G182: 1 | H182: 0 | I182: 9 | J182: 41
D183: закуска | E183: Салат из свеклы | F183: 60 | G183: 1 | H183: 4 | I183: 5 | J183: 56 | K183: 33
D184: итого | F184: =SUM(F177:F183) -> 685 | G184: =SUM(G177:G183) -> 17.8 | H184: 15 | I184: 87.5 | J184: 556.8 | L184: =SUM(L177:L183) -> 66.76
A185: =A177 -> 2 | B185: 10 | C185: Обед | D185: закуска
D186: 1 блюдо
D187: 2 блюдо
D188: гарнир
D189: напиток
D190: хлеб бел.
D191: хлеб черн.
D194: итого | F194: =SUM(F185:F193) -> 0 | G194: =SUM(G185:G193) -> 0 | H194: 0 | I194: 0 | J194: 0 | L194: =SUM(L185:L193) -> 0
A195: =A177 -> 2 | B195: =B177 -> 10 | C195: Итого за день: | F195: =F184+F194 -> 685 | G195: =G184+G194 -> 17.8 | H195: =H184+H194 -> 15 | I195: =I184+I194 -> 87.5 | J195: =J184+J194 -> 556.8 | L195: 66.76
A196: 2 | B196: 11 | C196: Завтрак | D196: гор.блюдо | E196: Птица, тушеная в соусе | F196: 100 | G196: 14 | H196: 21 | I196: 2 | J196: 250 | K196: 270 | L196: 66.76
D197: гор.блюдо | E197: Пюре картофельное | F197: 150 | G197: 3 | H197: 5 | I197: 21 | J197: 141 | K197: 312
D198: гор.напиток | E198: Напиток из плодов шиповника | F198: 200 | G198: 1 | H198: 0 | I198: 22 | J198: 99 | K198: 388
D199: хлеб | E199: Хлеб пшеничный | F199: 30 | G199: 2 | H199: 0 | I199: 15 | J199: 71
D200: фрукты
D201: хлеб | E201: Хлеб ржаной | F201: 20 | G201: 1 | H201: 0 | I201: 9 | J201: 41
D202: закуска | E202: Салат из квашенной капусты | F202: 60 | G202: 1 | H202: 3 | I202: 3 | J202: 43 | K202: 35
D203: итого | F203: =SUM(F196:F202) -> 560 | G203: =SUM(G196:G202) -> 22.7 | H203: 28.6 | I203: 71.7 | J203: 644.3 | L203: =SUM(L196:L202) -> 66.76
A204: =A196 -> 2 | B204: =B196 -> 11 | C204: Обед | D204: закуска
D205: 1 блюдо
D206: 2 блюдо
D207: гарнир
D208: напиток
D209: хлеб бел.
D210: хлеб черн.
D213: итого | F213: =SUM(F204:F212) -> 0 | G213: =SUM(G204:G212) -> 0 | H213: 0 | I213: 0 | J213: 0 | L213: =SUM(L204:L212) -> 0
A214: =A196 -> 2 | B214: =B196 -> 11 | C214: Итого за день: | F214: =F203+F213 -> 560 | G214: =G203+G213 -> 22.7 | H214: =H203+H213 -> 28.6 | I214: =I203+I213 -> 71.7 | J214: =J203+J213 -> 644.3 | L214: 66.76
A215: 2 | B215: 12 | C215: Завтрак | D215: гор.блюдо | E215: капуста тушенная | F215: 150 | G215: 3 | H215: 3 | I215: 11 | J215: 87.6 | K215: 321 | L215: 66.76
D216: гор.блюдо | E216: фрикадельки в соусе | F216: 100 | G216: 8 | H216: 10 | I216: 9 | J216: 159.5 | K216: 280
D217: гор.напиток | E217: чай с сахаром с лимоном | F217: 200 | G217: 0 | I217: 10 | J217: 41.6 | K217: 377
D218: хлеб | E218: хлеб пшеничный | F218: 30 | G218: 2 | H218: 0 | I218: 15 | J218: 71.1
D219: фрукты
D220: хлеб | E220: хлеб ржаной | F220: 20 | G220: 1 | H220: 0 | I220: 9 | J220: 40.8
D221: закуска | E221: салат из моркови с яблоками | F221: 60 | G221: 1 | H221: 3 | I221: 5 | J221: 52.3 | K221: 71
D222: итого | F222: =SUM(F215:F221) -> 560 | G222: =SUM(G215:G221) -> 15.4 | H222: 17.2 | I222: 58.5 | J222: 452.9 | L222: =SUM(L215:L221) -> 66.76
A223: =A215 -> 2 | B223: =B215 -> 12 | C223: Обед | D223: закуска
D224: 1 блюдо
... 8 more rows
